[Event "Titled Tuesday Blitz February 14 Late 2023"]
[White "Sztokbant, Bernardo Vainzoff"]
[Black "Fier, Alexandr"]
[WhiteFideId "2115956"]
[BlackFideId "2107139"]
[WhiteElo "2213"]
[BlackElo "2589"]
[Result "1/2-1/2"]
[Round "01"]
[TimeControl "180+2"]
[Date "2023.02.14"]
[WhiteClock "0:00:04"]
[BlackClock "0:00:40"]

1. e4 {[%clk 0:02:59]}  e5 {[%clk 0:02:58]} 2. Nf3 {[%clk 0:02:59]}  d6 {[%clk 0:02:58]} 3. d4 {[%clk 0:02:58]}  exd4 {[%clk 0:02:59]} 4. Nxd4 {[%clk 0:02:58]}  Nf6 {[%clk 0:03:00]} 5. Nc3 {[%clk 0:02:59]}  Be7 {[%clk 0:03:00]} 6. Be2 {[%clk 0:02:58]}  O-O {[%clk 0:03:00]} 7. O-O {[%clk 0:02:59]}  Re8 {[%clk 0:03:01]} 8. f4 {[%clk 0:02:59]}  Bf8 {[%clk 0:03:01]} 9. Bf3 {[%clk 0:03:00]}  Nbd7 {[%clk 0:03:01]} 10. Kh1 {[%clk 0:02:57]}  c6 {[%clk 0:03:02]} 11. b3 {[%clk 0:02:45]}  Qc7 {[%clk 0:02:58]} 12. Re1 {[%clk 0:02:45]}  Nc5 {[%clk 0:02:49]} 13. a4 {[%clk 0:02:38]}  Ne6 {[%clk 0:02:48]} 14. Be3 {[%clk 0:02:33]}  g6 {[%clk 0:02:44]} 15. Qd2 {[%clk 0:02:26]}  Bg7 {[%clk 0:02:44]} 16. f5 {[%clk 0:02:25]}  Nf8 {[%clk 0:02:41]} 17. Bf4 {[%clk 0:02:21]}  N6d7 {[%clk 0:02:33]} 18. Rad1 {[%clk 0:02:20]}  Ne5 {[%clk 0:02:33]} 19. Nde2 {[%clk 0:02:14]}  Nxf3 {[%clk 0:02:31]} 20. gxf3 {[%clk 0:02:15]}  gxf5 {[%clk 0:02:29]} 21. Bxd6 {[%clk 0:02:14]}  Qa5 {[%clk 0:02:24]} 22. Rg1 {[%clk 0:02:04]}  Ng6 {[%clk 0:02:23]} 23. e5 {[%clk 0:01:56]}  Rxe5 {[%clk 0:02:01]} 24. Bxe5 {[%clk 0:01:55]}  Qxe5 {[%clk 0:02:02]} 25. Qd8+ {[%clk 0:01:54]}  Bf8 {[%clk 0:02:03]} 26. Qg5 {[%clk 0:01:32]}  Be6 {[%clk 0:01:59]} 27. Nd4 {[%clk 0:01:06]}  Bd7 {[%clk 0:01:37]} 28. Rge1 {[%clk 0:01:03]}  Qc5 {[%clk 0:01:37]} 29. Nce2 {[%clk 0:00:58]}  Re8 {[%clk 0:01:35]} 30. c3 {[%clk 0:00:53]}  Bc8 {[%clk 0:01:33]} 31. b4 {[%clk 0:00:44]}  Qc4 {[%clk 0:01:31]} 32. Qd2 {[%clk 0:00:43]}  Bg7 {[%clk 0:01:25]} 33. Rg1 {[%clk 0:00:38]}  Qd5 {[%clk 0:01:22]} 34. Qd3 {[%clk 0:00:31]}  Bh6 {[%clk 0:01:20]} 35. c4 {[%clk 0:00:30]}  Qd8 {[%clk 0:01:17]} 36. Nxf5 {[%clk 0:00:26]}  Qxd3 {[%clk 0:01:17]} 37. Nxh6+ {[%clk 0:00:27]}  Kg7 {[%clk 0:01:18]} 38. Rxd3 {[%clk 0:00:27]}  Rxe2 {[%clk 0:01:19]} 39. Ng4 {[%clk 0:00:23]}  h5 {[%clk 0:01:18]} 40. Ne3 {[%clk 0:00:21]}  Bh3 {[%clk 0:01:16]} 41. Nf1 {[%clk 0:00:07]}  h4 {[%clk 0:01:12]} 42. Nd2 {[%clk 0:00:06]}  Kf8 {[%clk 0:01:09]} 43. Rd8+ {[%clk 0:00:06]}  Ke7 {[%clk 0:01:09]} 44. Rd4 {[%clk 0:00:06]}  b6 {[%clk 0:01:03]} 45. Re4+ {[%clk 0:00:07]}  Rxe4 {[%clk 0:01:03]} 46. Nxe4 {[%clk 0:00:07]}  Ne5 {[%clk 0:01:02]} 47. Re1 {[%clk 0:00:03]}  Nxf3 {[%clk 0:01:01]} 48. Re3 {[%clk 0:00:03]}  Ne5 {[%clk 0:00:47]} 49. Nf2 {[%clk 0:00:02]}  Kd6 {[%clk 0:00:45]} 50. Nxh3 {[%clk 0:00:02]}  Nxc4 {[%clk 0:00:46]} 51. Rc3 {[%clk 0:00:02]}  b5 {[%clk 0:00:46]} 52. Ng5 {[%clk 0:00:02]}  f5 {[%clk 0:00:45]} 53. Nf7+ {[%clk 0:00:02]}  Kd5 {[%clk 0:00:46]} 54. axb5 {[%clk 0:00:03]}  cxb5 {[%clk 0:00:46]} 55. Nh6 {[%clk 0:00:03]}  f4 {[%clk 0:00:46]} 56. Rf3 {[%clk 0:00:03]}  Ke4 {[%clk 0:00:46]} 57. Rf2 {[%clk 0:00:03]}  Ne5 {[%clk 0:00:43]} 58. Kg1 {[%clk 0:00:03]}  Nd3 {[%clk 0:00:44]} 59. Re2+ {[%clk 0:00:02]}  Kd4 {[%clk 0:00:43]} 60. Re7 {[%clk 0:00:03]}  a6 {[%clk 0:00:43]} 61. Re6 {[%clk 0:00:03]}  Nxb4 {[%clk 0:00:43]} 62. Nf5+ {[%clk 0:00:03]}  Kd5 {[%clk 0:00:42]} 63. Rh6 {[%clk 0:00:03]}  a5 {[%clk 0:00:42]} 64. Nxh4 {[%clk 0:00:03]}  a4 {[%clk 0:00:42]} 65. Rh5+ {[%clk 0:00:03]}  Kc4 {[%clk 0:00:43]} 66. Nf3 {[%clk 0:00:03]}  a3 {[%clk 0:00:43]} 67. Nd2+ {[%clk 0:00:03]}  Kd3 {[%clk 0:00:44]} 68. Rh3+ {[%clk 0:00:03]}  Kxd2 {[%clk 0:00:43]} 69. Rxa3 {[%clk 0:00:03]}  Nd3 {[%clk 0:00:43]} 70. h4 {[%clk 0:00:02]}  Ne5 {[%clk 0:00:39]} 71. h5 {[%clk 0:00:01]}  Kc2 {[%clk 0:00:36]} 72. Ra7 {[%clk 0:00:01]}  b4 {[%clk 0:00:36]} 73. Rb7 {[%clk 0:00:01]}  b3 {[%clk 0:00:37]} 74. h6 {[%clk 0:00:02]}  b2 {[%clk 0:00:37]} 75. h7 {[%clk 0:00:02]}  Ng6 {[%clk 0:00:37]} 76. Kf2 {[%clk 0:00:02]}  b1=Q {[%clk 0:00:38]} 77. Rxb1 {[%clk 0:00:02]}  Kxb1 {[%clk 0:00:38]} 78. Kf3 {[%clk 0:00:03]}  Kc2 {[%clk 0:00:39]} 79. h8=Q {[%clk 0:00:03]}  Nxh8 {[%clk 0:00:40]} 80. Kxf4 {[%clk 0:00:04]} 1/2-1/2


[Site "https://www.chess.com"]

[Event "Titled Tuesday Blitz February 14 Late 2023"]
[White "Riehle, Marco"]
[Black "Mazurkiewicz, Michal"]
[WhiteFideId "12904392"]
[BlackFideId "1124943"]
[WhiteElo "2368"]
[BlackElo "2145"]
[Result "1-0"]
[Round "01"]
[TimeControl "180+2"]
[Date "2023.02.14"]
[WhiteClock "0:01:59"]
[BlackClock "0:00:03"]

1. e4 {[%clk 0:03:00]}  d6 {[%clk 0:02:59]} 2. d4 {[%clk 0:02:56]}  Nf6 {[%clk 0:02:59]} 3. f3 {[%clk 0:02:56]}  e5 {[%clk 0:02:58]} 4. d5 {[%clk 0:02:56]}  c6 {[%clk 0:02:59]} 5. c4 {[%clk 0:02:56]}  cxd5 {[%clk 0:02:58]} 6. cxd5 {[%clk 0:02:56]}  Be7 {[%clk 0:02:59]} 7. Be3 {[%clk 0:02:56]}  O-O {[%clk 0:02:59]} 8. Qd2 {[%clk 0:02:57]}  Nbd7 {[%clk 0:02:58]} 9. Bd3 {[%clk 0:02:56]}  Nc5 {[%clk 0:02:58]} 10. Bc2 {[%clk 0:02:55]}  a5 {[%clk 0:02:58]} 11. Ne2 {[%clk 0:02:55]}  b6 {[%clk 0:02:50]} 12. O-O {[%clk 0:02:55]}  Ba6 {[%clk 0:02:50]} 13. Nbc3 {[%clk 0:02:55]}  Rc8 {[%clk 0:02:50]} 14. Rac1 {[%clk 0:02:54]}  b5 {[%clk 0:02:46]} 15. a3 {[%clk 0:02:53]}  b4 {[%clk 0:02:45]} 16. Na4 {[%clk 0:02:53]}  Nfd7 {[%clk 0:02:21]} 17. Nxc5 {[%clk 0:02:47]}  Nxc5 {[%clk 0:02:21]} 18. Rfd1 {[%clk 0:02:42]}  Bxe2 {[%clk 0:02:09]} 19. Qxe2 {[%clk 0:02:41]}  Bg5 {[%clk 0:02:10]} 20. h3 {[%clk 0:02:18]}  Bxe3+ {[%clk 0:02:05]} 21. Qxe3 {[%clk 0:02:19]}  Qb6 {[%clk 0:02:06]} 22. Kh2 {[%clk 0:02:15]}  Nd7 {[%clk 0:02:06]} 23. Qxb6 {[%clk 0:02:01]}  Nxb6 {[%clk 0:02:07]} 24. axb4 {[%clk 0:02:01]}  axb4 {[%clk 0:02:07]} 25. Bb3 {[%clk 0:02:02]}  g6 {[%clk 0:01:48]} 26. Rc6 {[%clk 0:02:01]}  Rxc6 {[%clk 0:01:25]} 27. dxc6 {[%clk 0:02:02]}  Rd8 {[%clk 0:01:23]} 28. c7 {[%clk 0:01:59]}  Rc8 {[%clk 0:00:20]} 29. Rxd6 {[%clk 0:01:59]}  Na8 {[%clk 0:00:03]} 30. Rd8+ {[%clk 0:01:59]} 1-0


[Site "https://www.chess.com"]

[Event "Titled Tuesday Blitz February 14 Late 2023"]
[White "Drnovsek, Gal"]
[Black "Pakleza, Zbigniew"]
[WhiteFideId "14607077"]
[BlackFideId "1119290"]
[WhiteElo "2397"]
[BlackElo "2494"]
[Result "0-1"]
[Round "01"]
[TimeControl "180+2"]
[Date "2023.02.14"]
[WhiteClock "0:00:09"]
[BlackClock "0:01:23"]

1. e4 {[%clk 0:02:45]}  d6 {[%clk 0:03:00]} 2. d4 {[%clk 0:02:45]}  Nf6 {[%clk 0:03:01]} 3. Nc3 {[%clk 0:02:45]}  c6 {[%clk 0:03:01]} 4. Nf3 {[%clk 0:02:45]}  Bg4 {[%clk 0:03:01]} 5. h3 {[%clk 0:02:44]}  Bh5 {[%clk 0:03:01]} 6. g4 {[%clk 0:02:35]}  Bg6 {[%clk 0:03:02]} 7. e5 {[%clk 0:02:35]}  Nd5 {[%clk 0:02:56]} 8. Nxd5 {[%clk 0:02:32]}  cxd5 {[%clk 0:02:57]} 9. Bg2 {[%clk 0:00:56]}  e6 {[%clk 0:02:56]} 10. O-O {[%clk 0:00:56]}  Nc6 {[%clk 0:02:56]} 11. Re1 {[%clk 0:00:52]}  Be7 {[%clk 0:02:56]} 12. c3 {[%clk 0:00:52]}  O-O {[%clk 0:02:55]} 13. Bf4 {[%clk 0:00:53]}  b5 {[%clk 0:02:54]} 14. Bg3 {[%clk 0:00:52]}  b4 {[%clk 0:02:51]} 15. Qd2 {[%clk 0:00:51]}  bxc3 {[%clk 0:02:51]} 16. bxc3 {[%clk 0:00:49]}  Rc8 {[%clk 0:02:49]} 17. Rac1 {[%clk 0:00:48]}  dxe5 {[%clk 0:02:41]} 18. Nxe5 {[%clk 0:00:45]}  Nxe5 {[%clk 0:02:42]} 19. dxe5 {[%clk 0:00:40]}  Qa5 {[%clk 0:02:25]} 20. f4 {[%clk 0:00:37]}  Rfd8 {[%clk 0:02:11]} 21. Kh2 {[%clk 0:00:34]}  h6 {[%clk 0:02:11]} 22. Rf1 {[%clk 0:00:29]}  Ba3 {[%clk 0:02:09]} 23. f5 {[%clk 0:00:19]}  Bxc1 {[%clk 0:02:07]} 24. Qxc1 {[%clk 0:00:19]}  exf5 {[%clk 0:01:57]} 25. gxf5 {[%clk 0:00:20]}  Bh5 {[%clk 0:01:58]} 26. Qf4 {[%clk 0:00:18]}  Rc4 {[%clk 0:01:43]} 27. Qf2 {[%clk 0:00:18]}  Qc5 {[%clk 0:01:39]} 28. Qd2 {[%clk 0:00:16]}  Rxc3 {[%clk 0:01:32]} 29. f6 {[%clk 0:00:16]}  Rc2 {[%clk 0:01:30]} 30. Qf4 {[%clk 0:00:16]}  Qc4 {[%clk 0:01:24]} 31. Qe3 {[%clk 0:00:09]}  Qxf1 {[%clk 0:01:23]} 0-1


[Site "https://www.chess.com"]

[Event "Titled Tuesday Blitz February 14 Late 2023"]
[White "Mekhitarian, Krikor Sevag"]
[Black "Poeta, Caio Medeiros"]
[WhiteFideId "2107660"]
[BlackFideId "2142660"]
[WhiteElo "2537"]
[BlackElo "2088"]
[Result "1-0"]
[Round "01"]
[TimeControl "180+2"]
[Date "2023.02.14"]
[WhiteClock "0:00:56"]
[BlackClock "0:00:12"]

1. e4 {[%clk 0:03:00]}  c6 {[%clk 0:02:59]} 2. Nf3 {[%clk 0:02:57]}  d5 {[%clk 0:03:00]} 3. d3 {[%clk 0:02:57]}  Bg4 {[%clk 0:02:57]} 4. h3 {[%clk 0:02:55]}  Bh5 {[%clk 0:02:57]} 5. e5 {[%clk 0:02:52]}  e6 {[%clk 0:02:56]} 6. Bf4 {[%clk 0:02:44]}  c5 {[%clk 0:02:56]} 7. Nbd2 {[%clk 0:02:43]}  Nc6 {[%clk 0:02:56]} 8. Be2 {[%clk 0:02:43]}  Bxf3 {[%clk 0:02:52]} 9. Nxf3 {[%clk 0:02:42]}  Nge7 {[%clk 0:02:51]} 10. O-O {[%clk 0:02:29]}  Qc7 {[%clk 0:02:50]} 11. c3 {[%clk 0:02:25]}  Ng6 {[%clk 0:02:49]} 12. Bg3 {[%clk 0:02:24]}  Be7 {[%clk 0:02:19]} 13. d4 {[%clk 0:02:20]}  O-O {[%clk 0:02:18]} 14. a3 {[%clk 0:02:20]}  Rac8 {[%clk 0:02:18]} 15. b4 {[%clk 0:02:19]}  b6 {[%clk 0:02:15]} 16. h4 {[%clk 0:02:14]}  Rfd8 {[%clk 0:02:05]} 17. h5 {[%clk 0:02:14]}  Nf8 {[%clk 0:02:05]} 18. h6 {[%clk 0:02:14]}  g6 {[%clk 0:01:57]} 19. Qd2 {[%clk 0:02:11]}  Nb8 {[%clk 0:01:46]} 20. Rac1 {[%clk 0:02:11]}  c4 {[%clk 0:01:43]} 21. Nh2 {[%clk 0:02:04]}  Rd7 {[%clk 0:01:40]} 22. Ng4 {[%clk 0:02:02]}  Qd8 {[%clk 0:01:40]} 23. Bd1 {[%clk 0:02:00]}  Rdc7 {[%clk 0:01:37]} 24. a4 {[%clk 0:01:59]}  Nbd7 {[%clk 0:01:35]} 25. Ra1 {[%clk 0:01:57]}  Bg5 {[%clk 0:01:31]} 26. f4 {[%clk 0:01:56]}  Bh4 {[%clk 0:01:31]} 27. Bh2 {[%clk 0:01:54]}  a6 {[%clk 0:01:31]} 28. Ne3 {[%clk 0:01:54]}  Be7 {[%clk 0:01:28]} 29. Bc2 {[%clk 0:01:48]}  Kh8 {[%clk 0:01:28]} 30. Kh1 {[%clk 0:01:47]}  Rb7 {[%clk 0:01:23]} 31. Rae1 {[%clk 0:01:47]}  b5 {[%clk 0:01:10]} 32. g4 {[%clk 0:01:45]}  Bh4 {[%clk 0:01:04]} 33. Re2 {[%clk 0:01:39]}  Be7 {[%clk 0:01:01]} 34. f5 {[%clk 0:01:39]}  exf5 {[%clk 0:01:01]} 35. gxf5 {[%clk 0:01:38]}  Bg5 {[%clk 0:00:59]} 36. Qe1 {[%clk 0:01:38]}  Bxh6 {[%clk 0:00:56]} 37. Nxd5 {[%clk 0:01:36]}  Nb6 {[%clk 0:00:44]} 38. Nxb6 {[%clk 0:01:30]}  Rxb6 {[%clk 0:00:43]} 39. a5 {[%clk 0:01:30]}  Rb7 {[%clk 0:00:39]} 40. e6 {[%clk 0:01:28]}  fxe6 {[%clk 0:00:30]} 41. fxe6 {[%clk 0:01:24]}  Qe7 {[%clk 0:00:23]} 42. Rf7 {[%clk 0:01:13]}  Qxf7 {[%clk 0:00:21]} 43. exf7 {[%clk 0:01:12]}  Rxf7 {[%clk 0:00:22]} 44. Be5+ {[%clk 0:01:07]}  Kg8 {[%clk 0:00:21]} 45. Be4 {[%clk 0:01:08]}  Rd8 {[%clk 0:00:20]} 46. Rf2 {[%clk 0:01:07]}  Rxf2 {[%clk 0:00:19]} 47. Qxf2 {[%clk 0:01:08]}  Bg7 {[%clk 0:00:20]} 48. Bxg7 {[%clk 0:01:06]}  Kxg7 {[%clk 0:00:20]} 49. Qf4 {[%clk 0:01:07]}  Ne6 {[%clk 0:00:19]} 50. Qe5+ {[%clk 0:01:07]}  Kf7 {[%clk 0:00:20]} 51. Bd5 {[%clk 0:01:08]}  Re8 {[%clk 0:00:20]} 52. Kh2 {[%clk 0:01:03]}  Re7 {[%clk 0:00:20]} 53. Qd6 {[%clk 0:01:03]}  Kf6 {[%clk 0:00:18]} 54. Qxa6 {[%clk 0:01:03]}  Kf5 {[%clk 0:00:18]} 55. Qxb5 {[%clk 0:01:01]}  Nf4 {[%clk 0:00:15]} 56. Bf3+ {[%clk 0:01:00]}  Kf6 {[%clk 0:00:15]} 57. a6 {[%clk 0:00:58]}  g5 {[%clk 0:00:12]} 58. Qe5+ {[%clk 0:00:56]} 1-0


[Site "https://www.chess.com"]

[Event "Titled Tuesday Blitz February 14 Late 2023"]
[White "Kanyamarala, Trisha"]
[Black "Christiansen, Johan-Sebastian"]
[WhiteFideId "45004722"]
[BlackFideId "1512668"]
[WhiteElo "2278"]
[BlackElo "2579"]
[Result "0-1"]
[Round "01"]
[TimeControl "180+2"]
[Date "2023.02.14"]
[WhiteClock "0:00:06"]
[BlackClock "0:00:15"]

1. c4 {[%clk 0:02:57]}  e5 {[%clk 0:02:59]} 2. Nc3 {[%clk 0:02:51]}  Nc6 {[%clk 0:03:00]} 3. Nf3 {[%clk 0:02:47]}  Nf6 {[%clk 0:02:55]} 4. g3 {[%clk 0:02:46]}  d5 {[%clk 0:02:45]} 5. cxd5 {[%clk 0:02:42]}  Nxd5 {[%clk 0:02:46]} 6. Bg2 {[%clk 0:02:41]}  Nb6 {[%clk 0:02:45]} 7. O-O {[%clk 0:02:40]}  g5 {[%clk 0:02:45]} 8. d3 {[%clk 0:02:36]}  g4 {[%clk 0:02:40]} 9. Ng5 {[%clk 0:02:33]}  h6 {[%clk 0:02:23]} 10. Nge4 {[%clk 0:02:31]}  Bg7 {[%clk 0:02:15]} 11. a4 {[%clk 0:02:27]}  a5 {[%clk 0:02:12]} 12. Bd2 {[%clk 0:02:15]}  O-O {[%clk 0:02:09]} 13. Qc1 {[%clk 0:02:14]}  Kh7 {[%clk 0:02:08]} 14. Nb5 {[%clk 0:02:07]}  f5 {[%clk 0:01:47]} 15. Nc5 {[%clk 0:02:07]}  Rb8 {[%clk 0:01:04]} 16. Nxb7 {[%clk 0:02:02]}  Bxb7 {[%clk 0:00:59]} 17. Bxc6 {[%clk 0:02:01]}  Nd5 {[%clk 0:00:39]} 18. Bxb7 {[%clk 0:01:53]}  Rxb7 {[%clk 0:00:40]} 19. Bxa5 {[%clk 0:01:49]}  Qd7 {[%clk 0:00:40]} 20. e4 {[%clk 0:01:42]}  Nf6 {[%clk 0:00:22]} 21. Rd1 {[%clk 0:01:30]}  f4 {[%clk 0:00:22]} 22. d4 {[%clk 0:01:29]}  Nxe4 {[%clk 0:00:21]} 23. Qc2 {[%clk 0:01:28]}  Qf5 {[%clk 0:00:20]} 24. Re1 {[%clk 0:00:51]}  Nxg3 {[%clk 0:00:19]} 25. Qxf5+ {[%clk 0:00:48]}  Nxf5 {[%clk 0:00:20]} 26. dxe5 {[%clk 0:00:41]}  Nh4 {[%clk 0:00:20]} 27. Re4 {[%clk 0:00:40]}  Nf3+ {[%clk 0:00:20]} 28. Kh1 {[%clk 0:00:40]}  Bxe5 {[%clk 0:00:18]} 29. Rd1 {[%clk 0:00:37]}  c6 {[%clk 0:00:18]} 30. Nc3 {[%clk 0:00:28]}  Rxb2 {[%clk 0:00:18]} 31. Rd7+ {[%clk 0:00:26]}  Kg6 {[%clk 0:00:17]} 32. Bc7 {[%clk 0:00:20]}  Rxf2 {[%clk 0:00:16]} 33. Rd1 {[%clk 0:00:06]}  Rxh2# {[%clk 0:00:15]} 0-1


[Site "https://www.chess.com"]

[Event "Titled Tuesday Blitz February 14 Late 2023"]
[White "Ferreira, Vitor Hugo Vieira"]
[Black "Oganian, Miran"]
[WhiteFideId "2119765"]
[BlackFideId "4122488"]
[WhiteElo "2128"]
[BlackElo "2439"]
[Result "0-1"]
[Round "01"]
[TimeControl "180+2"]
[Date "2023.02.14"]
[WhiteClock "0:00:47"]
[BlackClock "0:01:41"]

1. Nf3 {[%clk 0:02:55]}  d5 {[%clk 0:03:00]} 2. g3 {[%clk 0:02:55]}  Nf6 {[%clk 0:03:00]} 3. Bg2 {[%clk 0:02:55]}  g6 {[%clk 0:03:01]} 4. O-O {[%clk 0:02:55]}  Bg7 {[%clk 0:03:01]} 5. c4 {[%clk 0:02:56]}  O-O {[%clk 0:03:02]} 6. cxd5 {[%clk 0:02:55]}  Nxd5 {[%clk 0:03:03]} 7. Nc3 {[%clk 0:02:55]}  c6 {[%clk 0:03:04]} 8. d4 {[%clk 0:02:55]}  Nd7 {[%clk 0:03:02]} 9. e4 {[%clk 0:02:54]}  Nxc3 {[%clk 0:03:02]} 10. bxc3 {[%clk 0:02:53]}  Nb6 {[%clk 0:03:03]} 11. a4 {[%clk 0:02:52]}  Bg4 {[%clk 0:02:59]} 12. Qb3 {[%clk 0:02:39]}  Qc8 {[%clk 0:02:53]} 13. a5 {[%clk 0:02:35]}  Nd7 {[%clk 0:02:51]} 14. h3 {[%clk 0:02:34]}  Bxf3 {[%clk 0:02:50]} 15. Bxf3 {[%clk 0:02:34]}  e5 {[%clk 0:02:49]} 16. Ba3 {[%clk 0:02:18]}  Re8 {[%clk 0:02:47]} 17. Rfd1 {[%clk 0:02:13]}  exd4 {[%clk 0:02:46]} 18. cxd4 {[%clk 0:02:13]}  Nf6 {[%clk 0:02:46]} 19. Bg2 {[%clk 0:02:10]}  Nxe4 {[%clk 0:02:45]} 20. a6 {[%clk 0:02:04]}  bxa6 {[%clk 0:02:42]} 21. d5 {[%clk 0:02:03]}  Bxa1 {[%clk 0:02:34]} 22. Rxa1 {[%clk 0:02:02]}  cxd5 {[%clk 0:02:34]} 23. Rc1 {[%clk 0:01:50]}  Qe6 {[%clk 0:02:29]} 24. Bb2 {[%clk 0:01:49]}  Rab8 {[%clk 0:02:28]} 25. Qa3 {[%clk 0:01:50]}  Nxf2 {[%clk 0:02:00]} 26. Bd4 {[%clk 0:01:10]}  Nxh3+ {[%clk 0:01:56]} 27. Kh2 {[%clk 0:01:10]}  Ng5 {[%clk 0:01:53]} 28. Ba1 {[%clk 0:01:05]}  d4 {[%clk 0:01:49]} 29. Bxd4 {[%clk 0:01:02]}  Rb3 {[%clk 0:01:49]} 30. Qa5 {[%clk 0:00:56]}  Nf3+ {[%clk 0:01:49]} 31. Bxf3 {[%clk 0:00:55]}  Rxf3 {[%clk 0:01:50]} 32. Ba1 {[%clk 0:00:51]}  Qe2+ {[%clk 0:01:47]} 33. Kh3 {[%clk 0:00:51]}  Rxg3+ {[%clk 0:01:48]} 34. Kxg3 {[%clk 0:00:51]}  Re3+ {[%clk 0:01:48]} 35. Kf4 {[%clk 0:00:51]}  Qf2+ {[%clk 0:01:42]} 36. Kg5 {[%clk 0:00:51]}  Rg3+ {[%clk 0:01:41]} 37. Kh6 {[%clk 0:00:49]}  Qh2+ {[%clk 0:01:41]} 38. Qh5 {[%clk 0:00:47]}  Qxh5# {[%clk 0:01:41]} 0-1


[Site "https://www.chess.com"]

[Event "Titled Tuesday Blitz February 14 Late 2023"]
[White "Tanenbaum, Zachary"]
[Black "Rodriguez Fontecha, Marcos"]
[WhiteFideId "2060850"]
[BlackFideId "2256576"]
[WhiteElo "2261"]
[BlackElo "2309"]
[Result "1-0"]
[Round "01"]
[TimeControl "180+2"]
[Date "2023.02.14"]
[WhiteClock "0:00:43"]
[BlackClock "0:00:45"]

1. e4 {[%clk 0:02:59]}  e6 {[%clk 0:02:59]} 2. d4 {[%clk 0:02:59]}  d5 {[%clk 0:02:59]} 3. Nc3 {[%clk 0:02:59]}  h6 {[%clk 0:02:59]} 4. Nf3 {[%clk 0:02:58]}  Nf6 {[%clk 0:02:58]} 5. e5 {[%clk 0:02:55]}  Ne4 {[%clk 0:02:57]} 6. Bd3 {[%clk 0:02:41]}  Bb4 {[%clk 0:02:56]} 7. Bd2 {[%clk 0:02:41]}  Nxd2 {[%clk 0:02:56]} 8. Qxd2 {[%clk 0:02:33]}  c5 {[%clk 0:02:57]} 9. a3 {[%clk 0:02:33]}  Qa5 {[%clk 0:02:57]} 10. O-O {[%clk 0:02:27]}  Bxc3 {[%clk 0:02:57]} 11. bxc3 {[%clk 0:02:22]}  Nc6 {[%clk 0:02:57]} 12. dxc5 {[%clk 0:02:17]}  Qxc5 {[%clk 0:02:56]} 13. Rab1 {[%clk 0:02:16]}  a6 {[%clk 0:02:56]} 14. Rb3 {[%clk 0:02:04]}  Na5 {[%clk 0:02:56]} 15. Rb4 {[%clk 0:02:04]}  Bd7 {[%clk 0:02:55]} 16. Rg4 {[%clk 0:01:58]}  g6 {[%clk 0:02:48]} 17. Qf4 {[%clk 0:01:55]}  Qe7 {[%clk 0:02:30]} 18. Nd4 {[%clk 0:01:25]}  O-O-O {[%clk 0:02:16]} 19. Rg3 {[%clk 0:01:18]}  h5 {[%clk 0:02:06]} 20. Rb1 {[%clk 0:01:16]}  h4 {[%clk 0:02:05]} 21. Rf3 {[%clk 0:01:15]}  Rdf8 {[%clk 0:02:01]} 22. h3 {[%clk 0:01:14]}  Nc6 {[%clk 0:01:59]} 23. Qe3 {[%clk 0:01:06]}  Nb8 {[%clk 0:01:06]} 24. c4 {[%clk 0:01:02]}  Bc6 {[%clk 0:00:56]} 25. cxd5 {[%clk 0:00:52]}  Bxd5 {[%clk 0:00:55]} 26. Be4 {[%clk 0:00:52]}  Rd8 {[%clk 0:00:54]} 27. Qf4 {[%clk 0:00:45]}  Rhf8 {[%clk 0:00:50]} 28. Rc3+ {[%clk 0:00:43]}  Nc6 {[%clk 0:00:45]} 29. Bxd5 {[%clk 0:00:43]} 1-0


[Site "https://www.chess.com"]

[Event "Titled Tuesday Blitz February 14 Late 2023"]
[White "Dzida, Kamil"]
[Black "Erdogdu, Mert"]
[WhiteFideId "21828652"]
[BlackFideId "6301495"]
[WhiteElo "2352"]
[BlackElo "2413"]
[Result "0-1"]
[Round "01"]
[TimeControl "180+2"]
[Date "2023.02.14"]
[WhiteClock "0:00:40"]
[BlackClock "0:02:08"]

1. e4 {[%clk 0:02:59]}  c5 {[%clk 0:03:00]} 2. Nf3 {[%clk 0:02:55]}  d6 {[%clk 0:03:00]} 3. d4 {[%clk 0:02:54]}  cxd4 {[%clk 0:03:01]} 4. Nxd4 {[%clk 0:02:55]}  Nf6 {[%clk 0:03:02]} 5. Nc3 {[%clk 0:02:54]}  a6 {[%clk 0:03:02]} 6. g3 {[%clk 0:02:54]}  e6 {[%clk 0:03:02]} 7. Bg2 {[%clk 0:02:52]}  Bd7 {[%clk 0:03:03]} 8. O-O {[%clk 0:02:51]}  Nc6 {[%clk 0:03:04]} 9. Re1 {[%clk 0:02:45]}  Be7 {[%clk 0:03:04]} 10. h3 {[%clk 0:02:42]}  O-O {[%clk 0:03:04]} 11. Be3 {[%clk 0:02:41]}  Qc7 {[%clk 0:03:02]} 12. Nxc6 {[%clk 0:02:36]}  Bxc6 {[%clk 0:03:02]} 13. Bd4 {[%clk 0:02:36]}  b5 {[%clk 0:03:00]} 14. a3 {[%clk 0:02:31]}  a5 {[%clk 0:02:57]} 15. e5 {[%clk 0:02:14]}  dxe5 {[%clk 0:02:56]} 16. Bxe5 {[%clk 0:02:15]}  Qb7 {[%clk 0:02:56]} 17. Bxc6 {[%clk 0:01:47]}  Qxc6 {[%clk 0:02:56]} 18. Qe2 {[%clk 0:01:47]}  b4 {[%clk 0:02:51]} 19. Qb5 {[%clk 0:01:45]}  Rac8 {[%clk 0:02:38]} 20. axb4 {[%clk 0:01:22]}  axb4 {[%clk 0:02:33]} 21. Qxc6 {[%clk 0:00:56]}  Rxc6 {[%clk 0:02:34]} 22. Nb5 {[%clk 0:00:56]}  Rxc2 {[%clk 0:02:30]} 23. Ra7 {[%clk 0:00:56]}  Bc5 {[%clk 0:02:28]} 24. Rc7 {[%clk 0:00:48]}  Bxf2+ {[%clk 0:02:26]} 25. Kf1 {[%clk 0:00:41]}  Rxc7 {[%clk 0:02:26]} 26. Kxf2 {[%clk 0:00:41]}  Rc2+ {[%clk 0:02:22]} 27. Re2 {[%clk 0:00:40]}  Rfc8 {[%clk 0:02:08]} 0-1


[Site "https://www.chess.com"]